bitfinex/quotes_ETHUSD_20260131
["timestamp","ask_amount","ask_price","bid_price","bid_amount"]
[1769885288421,7.42551575,2369.8,2365.7,4.22782133]
[1769885288718,7.42551575,2369.8,2366.1,1.05659101]
[1769885288719,0.1024,2369.1,2366.1,1.05659101]
[1769885288916,0.1024,2368.5,2365.7,0.0011]
[1769885289127,13.7573305,2369.2,2365.7,0.0011]
[1769885289128,0.1024,2369.8,2366.5,0.01276188]
[1769885289349,0.1024,2369.6,2366.7,0.01276188]
[1769885289509,0.1024,2369.2,2367.2,0.01276188]
[1769885289697,0.52745043,2369.8,2367.3,0.01276188]
[1769885290037,0.52745043,2369.8,2366.6,0.01276188]
[1769885290038,1.05569549,2370.4,2367.8,0.01276188]
[1769885290240,0.001,2370.4,2367.9,0.01276188]
[1769885290444,0.001,2370.4,2368.4,0.01276188]
[1769885290745,0.01276188,2372.5,2369.2,1.0552085]
[1769885290910,0.01276188,2372.5,2368.8,4.23359591]
[1769885290911,7.42551575,2372.2,2368.6,0.01276188]
[1769885291112,7.42551575,2372.2,2369.0,1.05525569]
[1769885291340,7.42551575,2371.2,2368.4,1.05555246]
[1769885291641,7.42551575,2370.4,2366.7,0.01276188]
[1769885291847,0.1024,2370.3,2367.6,4.22360779]
[1769885292013,0.1024,2370.3,2367.7,0.01276188]
[1769885292343,0.01276188,2370.7,2367.3,0.01276188]
[1769885292344,0.01276188,2371.0,2369.0,4.22101219]
[1769885292510,1.06659218,2372.3,2369.5,0.01276188]
[1769885292711,1.06659218,2372.3,2369.8,0.01276188]
[1769885292912,1.06659218,2372.3,2369.4,1.05511943]
[1769885293138,1.06659218,2372.3,2369.5,0.01276188]
[1769885293313,1.06659218,2372.3,2369.7,0.01276188]
[1769885293713,0.01276188,2372.6,2370.1,0.01276188]
[1769885293929,2.58843468,2372.7,2369.8,0.01276188]
[1769885294131,3.27001512,2372.7,2369.4,1.06788131]
[1769885294328,0.1024,2372.6,2369.6,0.01276188]
[1769885294540,1.05374077,2372.5,2369.7,1.05498586]
[1769885294712,0.1024,2372.2,2368.7,1.05540489]
[1769885294917,0.1024,2372.2,2367.5,2.19200671]
[1769885294918,0.2335703,2371.6,2368.2,4.22251119]
[1769885295111,0.2335703,2371.6,2368.7,1.05542912]
[1769885295112,0.1024,2371.1,2368.7,1.05542912]
[1769885295323,0.1024,2371.1,2367.7,0.01276188]
[1769885295324,0.2335703,2370.2,2367.3,4.22406153]
[1769885295516,0.1024,2370.3,2367.2,0.01276188]
[1769885295716,8.56975255,2372.7,2368.6,4.22184003]
[1769885295717,0.01276188,2371.1,2368.6,4.22184003]
[1769885295933,0.01276188,2371.1,2368.2,1.05561065]
[1769885296240,0.34873218,2371.1,2368.4,1.05555973]
[1769885296451,0.34873218,2371.1,2368.1,0.01276188]
[1769885296452,0.11516188,2371.1,2368.1,0.01276188]
[1769885296650,0.01276188,2371.4,2369.0,0.01276188]
[1769885296815,0.01276188,2372.9,2370.4,0.01276188]
[1769885297160,0.01276188,2372.9,2370.3,0.01276188]
[1769885297161,0.01276188,2372.8,2370.3,0.01276188]
[1769885297317,0.01276188,2373.2,2370.4,0.01276188]
[1769885297518,1.05294191,2374.3,2370.4,0.11516188]
[1769885297742,1.05294191,2374.3,2370.3,0.01276188]
[1769885297743,0.01276188,2372.7,2370.3,0.01276188]
[1769885297947,0.01276188,2372.8,2370.4,0.01276188]
[1769885298223,0.75786583,2374.5,2371.6,0.01276188]
[1769885298530,1.05285323,2374.5,2371.9,0.01276188]
[1769885298727,1.05285323,2374.5,2371.8,1.05405177]
[1769885299053,4.22341123,2375.0,2371.8,1.05405177]
[1769885299054,0.01276188,2375.5,2372.4,0.01276188]
[1769885299225,0.07358336,2375.8,2373.9,0.01399592]
[1769885300028,0.01276188,2377.6,2374.2,12.81365695]
[1769885300372,1.05132094,2378.0,2373.9,2.13067321]
[1769885300373,0.01276188,2376.4,2373.9,0.01399592]
[1769885300520,0.01276188,2375.1,2373.9,0.01399592]
[1769885300727,0.01276188,2375.1,2371.8,1.08643415]
[1769885300728,0.01276188,2374.5,2371.8,0.0196205]
[1769885300950,0.01276188,2374.5,2372.0,0.01276188]
[1769885301152,0.1024,2375.1,2372.7,1.05360929]
[1769885301352,0.01276188,2374.5,2372.7,1.05360929]
[1769885301529,0.01276188,2376.0,2372.8,12.81365695]
[1769885301862,0.01276188,2374.7,2372.8,12.81365695]
[1769885302149,0.01276188,2375.0,2372.8,12.81365695]
[1769885302150,6.37905078,2378.0,2372.8,0.1024]
[1769885302322,0.01276188,2375.1,2372.8,0.1024]
[1769885302527,0.01276188,2375.1,2372.7,1.06637117]
[1769885302528,0.01276188,2374.5,2372.7,1.05360929]
[1769885302724,0.01276188,2374.5,2372.0,1.0539629]
[1769885302930,0.01276188,2373.1,2372.0,1.0539629]
[1769885303126,0.01276188,2373.2,2370.9,4.21776351]
[1769885303127,0.01276188,2372.2,2370.9,4.21776351]
[1769885303325,0.01276188,2372.4,2370.8,4.21784098]
[1769885303526,0.01276188,2372.6,2369.8,0.01276188]
[1769885303527,0.01276188,2372.8,2370.6,4.2182595]
[1769885303752,0.01276188,2372.6,2371.8,1.05404527]
[1769885304053,0.01276188,2372.9,2370.3,4.21884765]
[1769885304254,0.01276188,2372.9,2371.5,1.05417263]
[1769885304550,0.01276188,2372.6,2371.9,1.0540069]
[1769885304740,0.01276188,2372.6,2371.0,4.21762428]
[1769885304741,0.01276188,2372.9,2370.8,0.1024]
[1769885305258,0.01276188,2372.9,2370.5,1.05462982]
[1769885305460,0.01276188,2372.9,2368.7,12.71125695]
[1769885305461,0.2335703,2372.8,2368.7,12.71125695]
[1769885305666,0.1024,2372.0,2368.9,4.22120478]
[1769885305957,7.41193751,2372.9,2368.6,1.05543774]
[1769885305958,0.2335703,2371.3,2368.6,1.05543774]
[1769885306275,7.39917563,2371.4,2367.6,4.22363535]
[1769885306276,0.1024,2370.4,2367.6,4.22363535]
[1769885306558,0.2335703,2369.5,2366.1,2.1165735]
[1769885306757,0.2335703,2369.5,2365.9,4.22662747]
[1769885306964,7.39917563,2370.0,2365.9,4.22662747]
[1769885307165,1.07588786,2369.9,2365.9,4.22662747]
[1769885307349,0.3359703,2369.9,2365.9,4.22662747]
[1769885307549,0.3359703,2369.9,2366.2,0.1024]
[1769885307752,0.1024,2370.5,2366.8,0.01276188]
[1769885308061,0.1024,2370.5,2366.6,0.01276188]
[1769885308062,1.05427402,2371.3,2367.4,0.01276188]
[1769885308245,7.50157563,2371.2,2367.1,2.2647107]
[1769885308558,1.05427402,2371.3,2367.2,0.01276188]
[1769885308739,0.1024,2371.0,2367.4,0.1024]
[1769885308934,0.1024,2371.0,2367.3,1.05605542]
[1769885309158,0.1024,2370.6,2367.3,1.05605542]
[1769885309386,0.15,2399.1,2367.4,0.1024]
[1769885309536,0.1024,2371.8,2367.4,0.1024]
[1769885309740,4.21549616,2372.5,2367.4,0.1024]
[1769885309741,13.7573305,2374.8,2369.2,12.72401883]
[1769885310061,13.7573305,2374.8,2369.0,0.01276188]
[1769885310062,0.01276188,2372.4,2370.0,0.01276188]
[1769885310272,0.01276188,2372.5,2369.3,0.51107499]
[1769885310473,0.1024,2371.6,2367.8,0.3359703]
[1769885310641,0.01276188,2370.1,2367.9,1.05578782]
[1769885311469,0.01276188,2370.5,2368.2,0.1024]
[1769885311640,0.01276188,2370.5,2368.0,0.1024]
[1769885311837,0.01276188,2370.3,2368.2,0.01276188]
[1769885312053,4.22621893,2373.4,2368.7,0.2335703]
[1769885312054,0.01276188,2373.2,2368.7,0.2335703]
[1769885312253,0.01276188,2372.0,2369.7,0.2335703]
[1769885312563,0.01276188,2372.0,2369.8,0.01276188]
[1769885312773,0.01276188,2372.0,2370.0,0.1024]
[1769885312968,0.01276188,2372.2,2370.0,0.1024]
[1769885313449,0.01276188,2371.9,2370.0,0.1024]
[1769885313767,0.01276188,2371.0,2369.8,1.05490529]
[1769885313958,0.01276188,2371.0,2369.9,0.1024]
[1769885314162,0.01276188,2371.0,2368.0,4.2228872]
[1769885314340,0.01276188,2371.0,2367.5,12.71235695]
[1769885314341,0.1024,2370.8,2367.5,0.0011]
[1769885314540,0.2335703,2370.3,2367.5,4.22482297]
[1769885314844,0.3359703,2370.6,2367.5,0.0011]
[1769885315945,0.01276188,2371.0,2367.6,2.18240373]
[1769885316271,0.2335703,2370.5,2367.5,0.0011]
[1769885316785,1.06717823,2371.0,2367.5,0.1035]
[1769885316786,0.11516188,2371.0,2367.5,0.1035]
[1769885317078,0.01276188,2371.0,2367.9,0.01276188]
[1769885317243,0.01276188,2371.0,2368.0,0.01276188]
[1769885317575,0.01276188,2371.1,2368.9,7.51494512]
[1769885317576,0.01276188,2370.9,2368.9,7.51494512]
[1769885317764,0.01276188,2370.9,2369.1,0.1024]
[1769885318156,0.01276188,2371.1,2369.1,0.1024]
[1769885318357,0.01276188,2370.7,2369.1,0.1024]
[1769885318563,0.01276188,2371.3,2369.1,0.1024]
[1769885318757,0.01276188,2371.3,2369.3,0.1024]
[1769885319353,0.01276188,2371.3,2369.2,1.0552085]
[1769885319671,0.01276188,2371.3,2368.2,7.41254512]
[1769885319672,0.3359703,2371.1,2367.8,4.22324195]
[1769885319869,0.3359703,2371.1,2369.1,1.05524449]
[1769885320045,0.3359703,2371.1,2368.7,1.0553962]
[1769885320275,0.3359703,2371.1,2367.5,0.0011]
[1769885320276,0.3359703,2371.1,2367.9,4.22305197]
[1769885320618,0.01276188,2371.3,2369.2,0.1024]
[1769885320777,0.01276188,2371.3,2369.3,1.05516397]
[1769885321306,0.01276188,2371.3,2369.3,0.98136397]
[1769885321511,0.2335703,2371.2,2368.6,0.1024]
[1769885321677,0.1024,2371.1,2367.5,0.0011]
[1769885321998,0.1024,2370.3,2367.5,0.0011]
[1769885322197,0.2335703,2370.2,2368.1,1.05566402]
[1769885322382,0.2335703,2370.2,2368.0,1.0557314]
[1769885322582,0.2335703,2370.2,2367.5,0.0011]
[1769885322795,0.3359703,2370.1,2367.5,0.0011]
[1769885323521,0.3359703,2370.1,2367.3,0.0011]
[1769885323522,13.3174103,2370.1,2367.3,0.0011]
[1769885323800,0.3359703,2369.4,2366.4,1.05645706]
[1769885324008,0.3359703,2369.4,2365.7,2.15600604]
[1769885324009,0.3359703,2368.7,2367.7,0.0011]
[1769885324173,0.3359703,2368.7,2365.7,0.0011]
[1769885324174,8.34847856,2368.1,2365.7,0.0011]
[1769885324374,0.3359703,2368.0,2365.7,0.0011]
[1769885324704,0.3359703,2368.0,2364.5,0.0011]
[1769885324705,0.3359703,2367.1,2364.5,0.0011]
[1769885324906,0.3359703,2366.6,2362.7,4.23232094]
[1769885325122,0.3359703,2366.6,2361.5,14.01034159]
[1769885325123,0.2335703,2365.7,2362.0,1.26963436]
[1769885325326,0.1024,2365.8,2361.5,13.99757971]
[1769885325327,0.2335703,2365.1,2361.9,4.23385532]
[1769885325613,0.2335703,2365.1,2360.7,8.34847856]
[1769885325614,0.79988312,2361.5,2359.2,0.316032]
[1769885325789,8.34847856,2363.3,2361.0,1.05887164]
[1769885326119,8.34847856,2363.3,2359.7,4.23774034]
[1769885326120,12.98144,2362.2,2358.0,0.01276188]
[1769885326302,0.2335703,2360.8,2358.4,1.0600407]
[1769885326613,0.53343835,2361.6,2358.9,0.01276188]
[1769885326918,0.1024,2362.7,2358.9,0.01276188]
[1769885326919,0.2335703,2362.3,2359.0,1.05977108]
[1769885327088,0.2335703,2361.7,2358.9,1.05980395]
[1769885327292,0.2335703,2361.7,2358.3,0.0011]
[1769885327293,0.2335703,2361.1,2358.3,0.0011]
[1769885327491,8.34847856,2361.2,2357.3,1.06053535]
[1769885327492,0.0907,2357.6,2357.3,1.06053535]
[1769885327701,0.2335703,2360.3,2357.3,1.06053535]
[1769885327913,0.53296085,2360.2,2357.3,1.06053535]
[1769885328117,0.3359703,2360.5,2357.3,1.07329723]
[1769885328118,0.2335703,2360.5,2357.3,1.07329723]
[1769885328333,0.83484786,2361.1,2357.3,1.07329723]
[1769885328334,0.2335703,2361.0,2358.0,0.01276188]
[1769885328517,0.2335703,2361.0,2357.2,4.25490331]
[1769885328705,0.49744714,2361.5,2359.0,0.01276188]
[1769885328915,0.940659,2362.6,2359.7,0.01276188]
[1769885329094,0.83484786,2363.2,2359.6,0.01276188]
[1769885329295,0.83484786,2363.2,2360.1,0.01276188]
[1769885329610,0.83484786,2363.2,2359.9,0.01276188]
[1769885329813,0.83484786,2363.2,2359.5,0.01276188]
[1769885329814,0.1024,2363.1,2359.5,0.01276188]
[1769885329992,8.34847856,2363.6,2359.7,0.01276188]
[1769885330188,1.8038595,2363.5,2359.6,0.01276188]
[1769885330393,1.25793842,2363.5,2360.4,0.01276188]
[1769885330626,1.25793842,2363.5,2360.6,0.01276188]
[1769885330805,1.523,2365.6,2361.7,14.01034159]
[1769885331004,0.84099313,2370.1,2361.6,0.01276188]
[1769885331005,8.34847856,2367.6,2363.4,0.01276188]
[1769885331191,8.34847856,2367.6,2363.6,0.01276188]
[1769885331394,8.34847856,2366.7,2362.6,0.11516188]
[1769885331592,8.34847856,2366.7,2362.0,0.01276188]
[1769885331593,12.98144,2366.1,2360.9,0.01276188]
[1769885331793,12.98144,2366.1,2360.7,1.0717698]
[1769885331794,0.1024,2365.2,2361.8,0.01276188]
[1769885332017,0.94748786,2365.2,2360.6,4.24879356]
[1769885332216,0.2335703,2364.5,2361.2,0.01276188]
[1769885332418,0.1024,2364.3,2360.8,0.01276188]
[1769885332625,12.98144,2366.1,2361.2,0.01276188]
[1769885332920,0.1024,2365.0,2361.6,0.01276188]
[1769885333123,0.2335703,2364.9,2361.6,0.01276188]
[1769885333299,1.90209108,2365.2,2361.3,1.05873883]
[1769885333492,1.90209108,2365.2,2360.7,0.01276188]
[1769885333493,0.1024,2364.7,2360.2,4.24963796]
[1769885333704,0.3359703,2364.0,2360.8,4.23582156]
[1769885333908,0.86844489,2364.0,2361.2,1.05875698]
[1769885334094,8.34847856,2364.8,2361.4,0.01276188]
[1769885334308,8.34847856,2364.8,2361.6,0.01276188]
[1769885334513,12.98144,2366.2,2361.3,0.11516188]
[1769885334514,1.524,2366.8,2363.2,0.01276188]
[1769885334822,9.40429399,2367.9,2363.4,0.01276188]
[1769885335006,9.40429399,2367.9,2364.0,0.01276188]
[1769885335210,9.40429399,2367.9,2363.6,0.01276188]
[1769885335211,1.36274453,2367.8,2363.4,0.01276188]
[1769885335408,8.34847856,2366.1,2363.3,1.16024284]
[1769885335599,8.34847856,2366.1,2363.2,4.23137138]
[1769885335800,0.1024,2366.0,2362.9,0.1024]
[1769885336025,0.94748786,2366.0,2363.2,1.05786296]
[1769885336238,0.94748786,2366.0,2363.2,1.05784842]
[1769885336413,0.94748786,2366.0,2363.3,0.1024]
[1769885336414,0.84508786,2366.0,2363.3,0.1024]
[1769885336617,0.1024,2366.8,2363.3,0.1024]
[1769885336810,8.34947856,2366.9,2363.4,1.05779808]
[1769885337043,9.40573534,2366.9,2363.4,1.05779808]
[1769885337211,9.40573534,2366.9,2363.5,0.1024]
[1769885337414,9.40573534,2366.9,2363.4,1.07055996]
[1769885337415,1.36306709,2366.8,2363.4,1.07055996]
[1769885337615,1.36306709,2366.8,2363.3,4.24395423]
[1769885337616,1.36306709,2366.8,2363.3,1.05780613]
[1769885337813,0.2335703,2366.5,2363.3,1.05780613]
[1769885338033,1.36306709,2366.8,2363.6,0.01276188]
[1769885338335,1.36306709,2366.8,2364.0,0.01276188]
[1769885338518,0.001,2366.9,2364.1,0.01276188]
[1769885338714,0.001,2366.9,2364.0,0.01276188]
[1769885338715,8.34847856,2369.4,2365.0,0.01276188]
[1769885338914,9.4036371,2369.4,2365.5,0.1024]
[1769885339114,8.34847856,2368.6,2365.4,1.05690369]
[1769885339337,0.83484786,2369.3,2365.4,1.05690369]
[1769885339638,0.83484786,2369.3,2365.5,0.1024]
[1769885340331,0.1024,2369.2,2365.5,0.1024]
[1769885340518,0.01276188,2368.5,2366.1,0.01276188]
[1769885340720,0.01276188,2368.5,2364.9,13.99757971]
[1769885340924,0.1024,2368.4,2364.6,0.01276188]
[1769885341147,1.0682967,2368.5,2365.2,1.05698468]
[1769885341148,0.1024,2367.7,2365.2,1.05698468]
[1769885341441,0.1024,2367.7,2364.1,0.01276188]
[1769885341442,0.2335703,2367.0,2364.6,4.22896623]
[1769885341730,8.34847856,2367.8,2364.0,1.05748915]
[1769885341731,0.2335703,2366.1,2364.0,1.05748915]
[1769885342035,0.2335703,2366.1,2362.0,0.01276188]
[1769885342036,0.2335703,2364.6,2361.5,1.05864916]
[1769885342240,0.28672,2365.4,2361.4,1.05868418]
[1769885342241,0.1024,2363.7,2361.4,1.05868418]
[1769885342455,8.34847856,2364.2,2360.0,0.01276188]
[1769885342739,0.2335703,2364.2,2361.4,1.05869193]
[1769885343035,0.38771242,2365.2,2361.4,1.05869193]
[1769885343036,1.05649504,2366.4,2362.5,0.01276188]
[1769885343233,8.34847856,2367.4,2363.5,0.01276188]
[1769885343532,1.05583241,2367.8,2363.5,0.01276188]
[1769885343533,1.05583241,2367.8,2363.8,0.01276188]
[1769885343737,0.52791471,2367.7,2364.9,0.01276188]
[1769885343912,0.01276188,2368.5,2365.9,0.01276188]
[1769885344116,8.34847856,2367.6,2363.1,0.1024]
[1769885344328,0.38771242,2368.3,2363.1,0.1024]
[1769885344329,0.43864036,2368.3,2363.8,14.11274159]
[1769885344640,0.9842696,2368.2,2364.3,0.1024]
[1769885344818,0.01276188,2368.5,2365.1,13.99757971]
[1769885345138,0.01276188,2368.9,2365.8,13.99757971]
[1769885345515,0.01276188,2368.1,2364.8,1.05717185]
[1769885345716,0.01276188,2368.1,2364.9,0.11516188]
[1769885345913,0.01276188,2368.1,2365.3,0.01276188]
[1769885346145,0.01276188,2368.1,2364.9,0.1024]
[1769885346307,0.01276188,2369.4,2365.6,13.99757971]
[1769885346509,0.01276188,2369.3,2366.3,0.1024]
[1769885346706,0.01276188,2369.3,2365.5,0.2335703]
[1769885346707,0.01276188,2369.3,2365.1,2.13510575]
[1769885346907,0.01276188,2369.3,2366.1,0.01276188]
[1769885347112,0.01276188,2369.3,2364.9,0.48129506]
[1769885347113,9.29330898,2368.4,2364.9,0.48129506]
[1769885347336,9.29330898,2369.2,2364.9,4.22779351]
[1769885347508,0.1024,2369.0,2364.9,4.22779351]
[1769885347713,0.1024,2368.3,2364.8,4.22851756]
[1769885347936,0.1024,2367.7,2365.2,4.22779351]
[1769885348238,0.2335703,2368.5,2365.2,4.22779351]
[1769885348429,0.1024,2368.6,2365.2,4.22779351]
[1769885348430,0.2335703,2368.3,2365.2,4.22779351]
[1769885348731,5.08316658,2369.4,2364.3,4.22947104]
[1769885348732,0.2335703,2367.5,2364.3,4.22947104]
[1769885348932,0.2335703,2367.5,2363.9,4.23024848]
[1769885348933,0.3359703,2367.3,2363.9,4.23024848]
[1769885349134,0.3359703,2367.3,2363.0,4.23178464]
[1769885349135,0.3359703,2366.7,2363.0,4.23178464]
[1769885349337,9.29330898,2367.0,2363.7,1.05765942]
[1769885349338,0.3359703,2366.1,2363.7,1.05765942]
[1769885349509,0.3359703,2366.1,2363.0,4.23178058]
[1769885349838,0.3359703,2366.1,2363.7,1.05766192]
[1769885350039,1.29889823,2366.1,2361.3,2.19168579]
[1769885350241,0.3359703,2365.9,2363.0,1.05797517]
[1769885350428,0.3359703,2365.4,2361.3,2.19168579]
[1769885350627,0.3359703,2365.4,2361.5,13.02483612]
[1769885351030,0.3359703,2365.4,2361.6,14.08344045]
[1769885351031,1.39288464,2365.4,2361.6,14.08344045]
[1769885351233,0.3359703,2364.6,2361.6,1.05860433]
[1769885351433,0.76393272,2364.6,2360.9,4.23565971]
[1769885351634,0.3359703,2363.0,2360.2,4.23676214]
[1769885351846,0.3359703,2362.3,2359.3,0.21943272]
[1769885352031,0.3359703,2362.3,2358.0,13.02483612]
[1769885352032,0.42796242,2362.2,2359.0,4.23895413]
[1769885352221,0.3359703,2361.6,2359.3,1.05963387]
[1769885352418,1.29889823,2361.6,2358.4,0.22118322]
[1769885352619,0.3359703,2361.6,2358.9,4.23920221]
[1769885352829,0.2335703,2361.6,2358.2,4.24051147]
[1769885353030,0.2335703,2361.0,2358.2,4.24051147]
[1769885353347,0.2335703,2361.5,2358.2,4.24051147]
[1769885353520,0.3359703,2360.8,2356.7,4.24305453]
[1769885353720,0.3359703,2360.8,2358.1,1.06017556]
[1769885353920,0.46346242,2361.3,2358.0,1.06020172]
[1769885354220,9.29330898,2362.4,2358.0,14.08503784]
[1769885354221,0.2335703,2362.1,2358.0,14.08503784]
[1769885354554,1.0573507,2364.4,2361.1,0.01276188]
[1769885354739,1.0573507,2364.4,2361.0,0.01276188]
[1769885354740,1.00572417,2364.5,2361.4,0.01276188]
[1769885354920,1.00572417,2364.5,2361.2,0.01276188]
[1769885354921,1.05744014,2364.2,2361.2,0.1024]
[1769885355123,0.26160112,2364.1,2361.2,0.11516188]
[1769885355318,0.26160112,2364.1,2362.5,0.01276188]
[1769885355564,1.05650171,2366.3,2363.2,0.01276188]
[1769885355717,1.05650171,2366.3,2363.0,0.01276188]
[1769885355924,9.29330898,2366.1,2361.8,0.01276188]
[1769885356149,9.29330898,2366.1,2362.3,0.01276188]
[1769885356350,0.9293309,2366.0,2363.0,0.01276188]
[1769885356665,1.05650171,2366.3,2363.2,0.01276188]
[1769885356666,0.01276188,2366.3,2363.2,0.01276188]
[1769885356821,0.01276188,2365.8,2363.0,1.05797714]
[1769885357145,0.01276188,2364.7,2363.0,1.05797714]
[1769885357518,0.01276188,2364.7,2362.2,4.23332485]
[1769885357519,0.01276188,2364.7,2362.0,4.23356942]
[1769885357923,0.01276188,2364.9,2362.3,0.1024]
[1769885358123,0.01276188,2364.9,2362.9,1.05798352]
[1769885358527,0.01276188,2365.2,2363.0,13.12723612]
[1769885358834,0.01276188,2365.4,2363.1,1.05793237]
[1769885359031,0.01276188,2365.4,2363.2,0.1024]
[1769885359219,0.01276188,2365.5,2363.2,0.1024]
[1769885359424,0.01276188,2365.5,2363.1,1.05793237]
[1769885359844,0.01276188,2365.5,2363.0,1.05795892]
[1769885360049,0.01276188,2365.5,2362.4,0.0011]
[1769885360050,0.3359703,2365.3,2362.4,0.0011]
[1769885360252,1.30252284,2365.3,2362.4,0.0011]
[1769885360556,0.3359703,2364.5,2361.2,0.0011]
[1769885360867,0.3359703,2363.5,2361.2,0.0011]
[1769885361048,1.05770858,2363.6,2360.1,0.0008]
[1769885361049,9.31679325,2362.4,2360.1,0.0008]
[1769885361227,0.56630703,2362.3,2360.0,0.0008]
[1769885361425,0.1024,2362.0,2360.0,0.0008]
[1769885361625,0.1024,2361.8,2360.0,0.0008]
[1769885361955,0.2335703,2361.5,2360.0,0.0008]
[1769885362336,9.31679325,2362.5,2360.0,0.0008]
[1769885362337,0.3359703,2362.4,2360.0,0.0008]
[1769885362528,1.26764963,2362.4,2360.0,0.0008]
[1769885363051,1.26764963,2362.4,2359.3,4.23836568]
[1769885363052,0.2335703,2361.5,2358.4,1.0600407]
[1769885363260,0.2335703,2361.5,2358.8,0.0008]
[1769885363462,0.2335703,2361.9,2358.8,0.0008]
[1769885363758,4.2329834,2362.5,2358.8,0.0008]
[1769885363759,0.01276188,2363.0,2360.2,13.02483612]
[1769885363942,0.01276188,2362.4,2360.7,0.1024]
[1769885364257,0.01276188,2362.4,2361.2,0.0008]
[1769885364558,0.01276188,2362.4,2360.0,0.0008]
[1769885364860,0.2335703,2361.0,2358.8,0.0008]
[1769885365061,1.05835825,2362.2,2358.8,0.0008]
[1769885365358,0.01276188,2362.4,2358.8,0.0008]
[1769885365359,0.01276188,2362.4,2358.8,15.19270412]
[1769885365547,0.1024,2362.3,2358.8,15.19270412]
[1769885365756,0.01276188,2362.0,2359.4,13.02483612]
[1769885365954,0.01276188,2362.0,2359.8,13.02483612]
[1769885366264,4.23036979,2363.9,2359.8,13.02483612]
[1769885366265,0.01276188,2361.8,2359.9,0.1024]
[1769885366465,0.01276188,2361.9,2359.9,0.1024]
[1769885366466,0.01276188,2361.9,2359.9,13.12723612]
[1769885366638,1.05748487,2364.1,2359.9,13.12723612]
[1769885366639,0.01276188,2362.0,2359.9,13.12723612]
[1769885366840,1.05748487,2364.1,2359.9,13.12723612]
[1769885366841,0.01276188,2362.3,2359.9,13.12723612]
[1769885367065,0.01276188,2362.3,2360.0,1.05932203]
[1769885367234,0.1024,2362.2,2360.0,1.05932203]
[1769885367440,0.2335703,2362.1,2360.0,1.05932203]
[1769885367645,0.01276188,2361.6,2360.1,0.1024]
[1769885367846,0.01276188,2361.6,2360.0,1.05932203]
[1769885368133,0.01276188,2361.6,2359.9,1.05936447]
[1769885368345,0.01276188,2361.8,2360.0,0.1024]
[1769885368531,0.01276188,2362.9,2360.5,13.037598]
[1769885368737,0.01276188,2362.7,2360.6,0.1024]
[1769885368939,0.0008,2363.4,2361.0,13.139998]
[1769885369177,10.84179325,2365.1,2361.0,13.139998]
[1769885369178,0.01276188,2363.8,2361.5,0.1024]
[1769885369490,0.0008,2364.5,2362.0,13.037598]
[1769885369640,0.01276188,2364.9,2362.6,13.139998]
[1769885369641,0.01276188,2364.8,2362.6,13.139998]
[1769885369835,0.01276188,2365.2,2362.9,0.01276188]
[1769885370046,0.01276188,2365.2,2361.5,13.02483612]
[1769885370256,0.9342317,2365.2,2362.2,13.12723612]
[1769885370565,0.0008,2365.7,2362.2,0.1024]
[1769885371060,0.0008,2365.7,2362.3,0.1024]
[1769885371061,0.2335703,2364.7,2362.3,0.1024]
[1769885371264,0.2335703,2364.7,2362.1,4.2333418]
[1769885371265,0.1024,2364.2,2361.1,4.23525968]
[1769885371486,9.55036355,2364.7,2361.1,4.23525968]
[1769885371487,0.2335703,2363.9,2361.7,1.05852364]
[1769885371776,0.001,2363.6,2362.2,1.05080938]
[1769885371974,9.31679325,2365.4,2362.3,0.1024]
[1769885372274,0.0008,2364.8,2362.5,13.02483612]
[1769885372435,0.01276188,2366.5,2365.4,0.03937954]
[1769885372436,0.57906891,2366.3,2365.4,0.03937954]
[1769885372757,0.01276188,2366.2,2364.1,0.1024]
[1769885372935,0.56630703,2366.0,2362.3,13.037598]
[1769885373268,0.56630703,2366.1,2363.1,0.1024]
[1769885373440,0.01276188,2366.2,2363.1,13.12723612]
[1769885373787,9.31679325,2368.9,2367.5,0.00633966]
[1769885373965,0.001,2369.1,2365.5,13.02483612]
[1769885373966,0.0008,2368.7,2365.5,13.02483612]
[1769885374138,0.001,2369.1,2366.2,13.02483612]
[1769885374486,0.01276188,2368.7,2366.9,13.12723612]
[1769885374781,0.01276188,2368.9,2366.9,13.12723612]
[1769885374937,0.001,2369.1,2367.1,13.12723612]
[1769885375453,0.01276188,2367.8,2367.1,0.1024]
[1769885375657,0.01276188,2367.8,2366.9,4.22475707]
[1769885375658,0.01276188,2367.8,2366.9,1.05621614]
[1769885375856,0.01276188,2367.9,2366.9,1.05621614]
[1769885375857,0.01276188,2367.2,2366.9,1.05621614]
[1769885376189,0.01276188,2367.7,2366.9,1.05622992]
[1769885376475,0.01276188,2368.6,2366.9,1.05622992]
[1769885376476,0.01276188,2367.8,2366.9,1.05622992]
[1769885376639,0.01276188,2368.3,2367.0,0.1024]
[1769885376837,0.01276188,2368.1,2367.0,0.1024]
[1769885377037,0.01276188,2368.5,2367.1,1.05614464]
[1769885377261,0.01276188,2368.1,2367.1,1.05614464]
[1769885377441,0.01276188,2368.2,2367.1,1.05614464]
[1769885377634,0.01276188,2368.2,2366.9,4.22537859]
[1769885377635,0.01276188,2368.2,2366.9,0.0008]
[1769885378067,0.24633218,2368.2,2366.9,0.0008]
[1769885378267,0.01276188,2368.2,2366.9,0.0008]
[1769885378842,0.001,2369.1,2367.1,0.1024]
[1769885379041,0.01276188,2368.8,2367.2,1.05610003]
[1769885379556,0.01376188,2369.1,2367.2,1.05610003]
[1769885379557,0.01276188,2369.0,2367.3,0.1024]
[1769885379944,0.01276188,2370.6,2367.3,13.05309125]
[1769885380267,0.01276188,2369.1,2367.3,13.05309125]
[1769885380449,0.01276188,2368.9,2367.8,0.0008]
[1769885381167,0.01276188,2368.9,2367.1,4.22440013]
[1769885381168,0.01276188,2368.0,2367.1,1.05610083]
[1769885381472,0.01276188,2369.7,2367.1,1.05610083]
[1769885381473,0.01276188,2368.7,2367.2,0.1024]
[1769885381766,0.01276188,2368.7,2367.1,1.05610083]
[1769885381767,0.01276188,2368.9,2367.1,1.05611159]
[1769885381969,0.01276188,2368.9,2367.1,1.05613791]
[1769885382353,0.01276188,2368.9,2367.1,1.05613629]
[1769885382552,0.01276188,2368.9,2367.2,0.1024]
[1769885382753,0.01276188,2368.7,2367.2,0.1024]
[1769885382963,0.01276188,2369.0,2367.4,0.1024]
[1769885383164,0.001,2368.7,2367.3,1.05685542]
[1769885383681,0.001,2368.7,2366.2,4.22611869]
[1769885383850,0.001,2368.7,2366.0,0.0011]
[1769885383851,0.001,2368.7,2366.6,1.05633308]
[1769885384160,0.001,2368.7,2365.7,4.22690259]
[1769885384161,0.2335703,2367.9,2365.1,1.05700119]
[1769885384363,13.53237558,2368.3,2365.1,1.05700119]
[1769885384364,0.2335703,2367.7,2365.1,4.2281208]
[1769885384557,0.2335703,2367.7,2365.3,4.22764461]
[1769885384753,1.35323756,2368.2,2364.9,4.22846261]
[1769885385051,0.01276188,2366.7,2363.9,12.95069125]